bitfinex/quotes_BTCUSD_20251024
["timestamp","ask_amount","ask_price","bid_price","bid_amount"]
[1761317884220,0.1815541,110160.0,110150.0,0.00214668]
[1761317884626,0.3499541,110160.0,110150.0,0.00014668]
[1761317884821,0.6899541,110160.0,110150.0,0.00014668]
[1761317886029,0.77810327,110160.0,110150.0,0.00014668]
[1761317886244,0.6909541,110160.0,110150.0,0.00014668]
[1761317886669,0.1825541,110160.0,110150.0,0.29069332]
[1761317886889,0.1825541,110160.0,110150.0,0.09096569]
[1761317887107,0.1825541,110160.0,110150.0,0.27253627]
[1761317887327,0.1825541,110160.0,110150.0,0.00114668]
[1761317889300,0.1815541,110160.0,110150.0,0.00114668]
[1761317889934,0.1815541,110160.0,110150.0,0.18271726]
[1761317890143,0.1815541,110160.0,110150.0,0.00114668]
[1761317890575,0.1815541,110160.0,110150.0,0.18271726]
[1761317890839,0.1815541,110160.0,110150.0,0.00114668]
[1761317892084,0.1815541,110160.0,110150.0,0.18271726]
[1761317892293,0.1815541,110160.0,110150.0,0.00114668]
[1761317893478,0.1815541,110160.0,110150.0,0.18271726]
[1761317894003,0.1815541,110160.0,110150.0,0.00114668]
[1761317897065,0.1815541,110160.0,110150.0,0.18271505]
[1761317897276,0.18329496,110170.0,110160.0,0.1815541]
[1761317897472,0.18329496,110170.0,110160.0,0.16792]
[1761317898083,0.18329496,110170.0,110160.0,0.3494741]
[1761317898497,0.18529496,110170.0,110160.0,0.3494741]
[1761317898698,0.00375734,110170.0,110160.0,0.43929311]
[1761317899138,0.00475734,110170.0,110160.0,0.49729311]
[1761317899346,0.00475734,110170.0,110160.0,0.43917311]
[1761317899564,0.00475734,110170.0,110160.0,0.49729311]
[1761317899726,0.00375734,110170.0,110160.0,0.49729311]
[1761317899927,0.18329496,110170.0,110150.0,0.1817168]
[1761317900143,0.18329496,110170.0,110160.0,0.18484]
[1761317900374,0.18329496,110170.0,110160.0,0.017]
[1761317900627,0.18329496,110170.0,110160.0,0.3663941]
[1761317901380,0.18329496,110170.0,110160.0,0.017]
[1761317901582,0.18329496,110170.0,110160.0,0.3533541]
[1761317901838,0.18329496,110170.0,110160.0,0.1698]
[1761317902053,0.18329496,110170.0,110160.0,0.3513541]
[1761317902205,0.18329496,110170.0,110160.0,0.3493541]
[1761317903714,0.1815541,110160.0,110150.0,0.14808569]
[1761317903914,0.18329496,110170.0,110150.0,0.49725627]
[1761317904185,0.18329496,110170.0,110160.0,0.1815541]
[1761317904806,0.18529496,110170.0,110160.0,0.1815541]
[1761317905180,0.18529496,110170.0,110150.0,0.49825627]
[1761317905689,0.1815541,110160.0,110150.0,0.49825627]
[1761317906092,0.1815541,110160.0,110150.0,0.49725627]
[1761317907047,0.00275734,110170.0,110160.0,0.1815541]
[1761317907250,0.00275734,110170.0,110160.0,0.27137311]
[1761317907764,0.00275734,110170.0,110160.0,0.78945881]
[1761317907977,0.00175734,110170.0,110160.0,1.12945881]
[1761317909014,0.00175734,110170.0,110160.0,1.13445881]
[1761317909448,1e-08,110170.0,110160.0,1.20016084]
[1761317909668,1e-08,110170.0,110160.0,1.85866426]
[1761317909870,1e-08,110170.0,110160.0,1.38176084]
[1761317910295,1e-08,110170.0,110160.0,1.42568084]
[1761317910497,1e-08,110170.0,110160.0,1.37697881]
[1761317911536,1e-08,110170.0,110160.0,0.89507539]
[1761317911753,1e-08,110170.0,110160.0,1.37697881]
[1761317913057,1e-08,110170.0,110160.0,1.37677881]
[1761317914544,1e-08,110170.0,110160.0,0.89487539]
[1761317914759,1e-08,110170.0,110160.0,1.31857881]
[1761317914975,1e-08,110170.0,110160.0,1.37665881]
[1761317915865,1e-08,110170.0,110160.0,0.83667539]
[1761317916090,1e-08,110170.0,110160.0,0.32955539]
[1761317916301,1e-08,110170.0,110160.0,0.55467539]
[1761317916740,1e-08,110170.0,110160.0,0.53267539]
[1761317916951,1e-08,110170.0,110160.0,0.78945881]
[1761317917165,1e-08,110170.0,110160.0,1.03153881]
[1761317917401,1e-08,110170.0,110160.0,1.37153881]
[1761317918054,1e-08,110170.0,110160.0,1.37653881]
[1761317918483,1e-08,110170.0,110160.0,1.35453881]
[1761317918703,1e-08,110170.0,110160.0,1.36953881]
[1761317918925,1e-08,110170.0,110160.0,1.37453881]
[1761317919145,1e-08,110170.0,110160.0,1.35953881]
[1761317919419,1e-08,110170.0,110160.0,1.37653881]
[1761317920714,1e-08,110170.0,110160.0,1.90714426]
[1761317920921,1e-08,110170.0,110160.0,1.42524084]
[1761317924764,1e-08,110170.0,110160.0,1.68900659]
[1761317928340,1e-08,110170.0,110160.0,1.01763539]
[1761317928538,1e-08,110170.0,110160.0,1.82138456]
[1761317929604,1e-08,110170.0,110160.0,1.87008659]
[1761317936542,1e-08,110170.0,110160.0,1.82138456]
[1761317937535,1e-08,110170.0,110160.0,1.88652948]
[1761317937759,1e-08,110170.0,110160.0,1.87034379]
[1761317937952,1e-08,110170.0,110160.0,0.84821234]
[1761317938154,1e-08,110170.0,110160.0,0.90629234]
[1761317938378,1e-08,110170.0,110160.0,1.68814379]
[1761317941717,1e-08,110170.0,110160.0,1.68802379]
[1761317944986,1e-08,110170.0,110160.0,1.63906456]
[1761317945386,1e-08,110170.0,110160.0,1.50761509]
[1761317945631,1e-08,110170.0,110160.0,1.70396948]
[1761317945803,1e-08,110170.0,110160.0,1.68779294]
[1761317946009,1e-08,110170.0,110160.0,1.63882456]
[1761317946429,1e-08,110170.0,110160.0,1.70396948]
[1761317946788,1e-08,110170.0,110160.0,1.85346948]
[1761317947572,1e-08,110170.0,110160.0,1.88994868]
[1761317947778,1e-08,110170.0,110160.0,1.86346947]
[1761317948174,1e-08,110170.0,110160.0,1.1178003]
[1761317948368,1e-08,110170.0,110160.0,1.86346947]
[1761317948591,1e-08,110170.0,110160.0,1.71396947]
[1761317949676,1e-08,110170.0,110160.0,1.74121422]
[1761317950327,1e-08,110170.0,110160.0,2.49688338]
[1761317950527,1e-08,110170.0,110160.0,2.71897061]
[1761317950731,1e-08,110170.0,110160.0,1.97330144]
[1761317951073,1e-08,110170.0,110160.0,1.94347965]
[1761317951321,1e-08,110170.0,110160.0,1.92647965]
[1761317951544,1e-08,110170.0,110160.0,1.94847965]
[1761317952283,1e-08,110170.0,110160.0,1.94347965]
[1761317952714,1e-08,110170.0,110160.0,1.94847965]
[1761317952917,1e-08,110170.0,110160.0,1.72487965]
[1761317953143,1e-08,110170.0,110160.0,2.12995965]
[1761317954156,1e-08,110170.0,110160.0,1.92800045]
[1761317954389,1e-08,110170.0,110160.0,2.10348044]
[1761317955271,1e-08,110170.0,110160.0,2.12995965]
[1761317957734,0.00183301,110220.0,110210.0,0.18147173]
[1761317957931,0.00183301,110220.0,110210.0,0.49485074]
[1761317958281,0.00355029,110220.0,110210.0,0.49485074]
[1761317959031,0.00355029,110220.0,110210.0,0.49885074]
[1761317960220,0.00368349,110220.0,110210.0,0.51085074]
[1761317962587,0.00368349,110220.0,110210.0,1.29270219]
[1761317962804,0.00368349,110220.0,110210.0,1.63270219]
[1761317963240,1e-08,110220.0,110210.0,1.63270219]
[1761317963567,1e-08,110220.0,110210.0,1.62070219]
[1761317963777,1e-08,110220.0,110210.0,1.63370219]
[1761317964172,1e-08,110220.0,110210.0,1.62070219]
[1761317964377,1e-08,110220.0,110210.0,1.63170219]
[1761317964782,1e-08,110220.0,110210.0,1.63570219]
[1761317965424,1e-08,110220.0,110210.0,1.63170219]
[1761317965659,1e-08,110220.0,110210.0,1.63670219]
[1761317967958,1e-08,110220.0,110210.0,1.6403336]
[1761317968161,1e-08,110220.0,110210.0,1.8218136]
[1761317968552,1e-08,110220.0,110210.0,1.8168136]
[1761317968782,1e-08,110220.0,110210.0,1.92336721]
[1761317969342,1e-08,110220.0,110210.0,1.91836721]
[1761317969546,1e-08,110220.0,110210.0,1.92336721]
[1761317970588,1e-08,110220.0,110210.0,1.90836721]
[1761317970792,1e-08,110220.0,110210.0,1.92536721]
[1761317971992,1e-08,110220.0,110210.0,1.86720721]
[1761317972206,1e-08,110220.0,110210.0,1.92528721]
[1761317972873,1e-08,110220.0,110210.0,1.88910493]
[1761317973481,1e-08,110220.0,110210.0,2.07478721]
[1761317973687,1e-08,110220.0,110210.0,1.65117582]
[1761317974118,1e-08,110220.0,110210.0,2.07478721]
[1761317974333,1e-08,110220.0,110210.0,1.83522721]
[1761317974552,1e-08,110220.0,110210.0,2.07474721]
[1761317974910,1e-08,110220.0,110210.0,1.66982721]
[1761317975143,1e-08,110220.0,110210.0,2.07474721]
[1761317982381,1e-08,110220.0,110210.0,2.12363597]
[1761317983424,1e-08,110220.0,110210.0,1.71871597]
[1761317983637,1e-08,110220.0,110210.0,1.69998458]
[1761317983863,1e-08,110220.0,110210.0,1.71871597]
[1761317984062,1e-08,110220.0,110210.0,1.46042458]
[1761317984273,1e-08,110220.0,110210.0,1.65105582]
[1761317984861,1e-08,110220.0,110210.0,2.07482985]
[1761317985908,1e-08,110220.0,110210.0,2.12371861]
[1761317986137,1e-08,110220.0,110210.0,2.07482985]
[1761317986696,1e-08,110220.0,110210.0,2.12371774]
[1761317990479,1e-08,110220.0,110210.0,1.71887774]
[1761317990679,1e-08,110220.0,110210.0,1.31096503]
[1761317990930,1e-08,110220.0,110210.0,1.36537362]
[1761317991502,1e-08,110220.0,110210.0,1.73102633]
[1761317991716,1e-08,110220.0,110210.0,1.78906633]
[1761317992075,1e-08,110220.0,110210.0,1.36537362]
[1761317992451,0.02849788,110260.0,110240.0,0.18140697]
[1761317992652,0.21038118,110260.0,110250.0,0.22332]
[1761317993055,0.21038118,110260.0,110250.0,0.40472589]
[1761317993261,0.21038118,110260.0,110250.0,0.16528]
[1761317994005,0.21038118,110260.0,110250.0,0.16628]
[1761317994206,0.21038118,110260.0,110250.0,0.34768589]
[1761317994418,0.21038118,110260.0,110250.0,0.16628]
[1761317994623,0.21038118,110260.0,110250.0,0.001]
[1761317994825,0.01991762,110260.0,110250.0,0.16628]
[1761317994974,0.20130706,110260.0,110250.0,0.34768589]
[1761317995156,0.01991762,110260.0,110250.0,0.34768589]
[1761317995385,0.18187865,110260.0,110250.0,0.16628]
[1761317995585,0.20132097,110260.0,110250.0,0.34768589]
[1761317996440,0.01993153,110260.0,110250.0,0.34768589]
[1761317996711,0.00048921,110260.0,110250.0,0.34768589]
[1761317996907,0.18187865,110260.0,110250.0,0.34768589]
[1761317997571,0.00048921,110260.0,110250.0,0.34768589]
[1761317997807,0.18187865,110260.0,110250.0,0.34768589]
[1761317998022,0.00048921,110260.0,110250.0,0.34768589]
[1761317998453,0.00186222,110260.0,110250.0,0.34768589]
[1761317998665,0.00186222,110260.0,110250.0,0.86119761]
[1761317998883,0.00186222,110260.0,110250.0,0.4375049]
[1761317999131,0.00186222,110260.0,110250.0,1.7191126]
[1761317999553,0.00186222,110260.0,110250.0,1.74096293]
[1761317999774,0.00186222,110260.0,110250.0,0.89357751]
[1761317999974,0.00186222,110260.0,110250.0,1.74096293]
[1761318000215,0.00186222,110260.0,110250.0,1.31627022]
[1761318000404,0.00186222,110260.0,110250.0,1.33623022]
[1761318000635,0.00186222,110260.0,110250.0,1.75992293]
[1761318000849,1e-08,110260.0,110250.0,2.18361564]
[1761318001052,1e-08,110260.0,110250.0,1.75992293]
[1761318001256,1e-08,110260.0,110250.0,1.54027283]
[1761318001636,1e-08,110260.0,110250.0,1.46330012]
[1761318001837,1e-08,110260.0,110250.0,1.08972979]
[1761318002175,1e-08,110260.0,110250.0,1.31437989]
[1761318002378,1e-08,110260.0,110250.0,0.2912249]
[1761318002553,1e-08,110260.0,110250.0,0.5145049]
[1761318002818,1e-08,110260.0,110250.0,0.09481901]
[1761318003032,1e-08,110260.0,110250.0,0.4945049]
[1761318003246,0.18138945,110260.0,110250.0,0.2882249]
[1761318003464,0.18138945,110260.0,110250.0,0.4414649]
[1761318003678,1e-08,110260.0,110250.0,0.4414649]
[1761318003895,1e-08,110260.0,110250.0,0.4544649]
[1761318004127,1e-08,110260.0,110250.0,0.4414649]
[1761318004751,1e-08,110260.0,110250.0,0.4364649]
[1761318004994,1e-08,110260.0,110250.0,1.62385032]
[1761318005210,1e-08,110260.0,110250.0,1.6620326]
[1761318005835,1e-08,110260.0,110250.0,1.6600326]
[1761318006252,1e-08,110260.0,110250.0,1.6610326]
[1761318006706,1e-08,110260.0,110250.0,1.6750326]
[1761318006926,1e-08,110260.0,110250.0,1.30878622]
[1761318007325,1e-08,110260.0,110250.0,1.14354622]
[1761318007561,1e-08,110260.0,110250.0,1.36678622]
[1761318007775,1e-08,110260.0,110250.0,1.14354622]
[1761318007984,1e-08,110260.0,110250.0,1.36678622]
[1761318008217,1e-08,110260.0,110250.0,1.37178622]
[1761318008563,1e-08,110260.0,110250.0,0.89064718]
[1761318008769,1e-08,110260.0,110250.0,0.83260718]
[1761318008974,1e-08,110260.0,110250.0,1.37178622]
[1761318009768,1e-08,110260.0,110250.0,0.89064718]
[1761318009972,1e-08,110260.0,110250.0,1.37178622]
[1761318010180,1e-08,110260.0,110250.0,1.37174622]
[1761318010693,1e-08,110260.0,110250.0,1.14854622]
[1761318010896,1e-08,110260.0,110250.0,1.37174622]
[1761318011641,1e-08,110260.0,110250.0,0.6312249]
[1761318011854,1e-08,110260.0,110250.0,0.2912249]
[1761318012090,1e-08,110260.0,110250.0,0.5144249]
[1761318012938,0.18138945,110260.0,110250.0,0.2712249]
[1761318013146,1e-08,110260.0,110250.0,0.24344589]
[1761318013355,1e-08,110260.0,110250.0,0.42160589]
[1761318013574,0.18138945,110260.0,110250.0,0.40860589]
[1761318013933,0.18138945,110260.0,110250.0,0.42060589]
[1761318014381,1e-08,110260.0,110250.0,0.41660589]
[1761318014739,0.18138945,110260.0,110250.0,0.42060589]
[1761318015728,0.18138945,110260.0,110250.0,0.40460589]
[1761318015938,1e-08,110260.0,110250.0,0.40460589]
[1761318016570,1e-08,110260.0,110250.0,0.40660589]
[1761318016571,0.18138945,110260.0,110250.0,0.40660589]
[1761318016790,0.18138945,110260.0,110250.0,0.41860589]
[1761318017002,1e-08,110260.0,110250.0,0.41860589]
[1761318017222,1e-08,110260.0,110250.0,0.5084249]
[1761318017887,1e-08,110260.0,110250.0,0.5064249]
[1761318018140,1e-08,110260.0,110250.0,0.98756394]
[1761318018358,1e-08,110260.0,110250.0,1.36774622]
[1761318018944,1e-08,110260.0,110250.0,1.35174622]
[1761318019364,1e-08,110260.0,110250.0,1.37174622]
[1761318019627,1e-08,110260.0,110250.0,1.35674622]
[1761318019955,1e-08,110260.0,110250.0,1.36674622]
[1761318021125,1e-08,110260.0,110250.0,0.82752718]
[1761318021344,1e-08,110260.0,110250.0,1.37170622]
[1761318023958,1e-08,110260.0,110250.0,1.33552394]
[1761318024378,1e-08,110260.0,110250.0,1.37170622]
[1761318026596,1e-08,110260.0,110250.0,1.14854622]
[1761318026801,1e-08,110260.0,110250.0,1.55310622]
[1761318028041,1e-08,110260.0,110250.0,1.14854622]
[1761318028259,1e-08,110260.0,110250.0,1.55306622]
[1761318028694,1e-08,110260.0,110250.0,1.55302622]
[1761318028918,1e-08,110260.0,110250.0,1.14854622]
[1761318029134,1e-08,110260.0,110250.0,1.55302622]
[1761318029570,1e-08,110260.0,110250.0,1.07188718]
[1761318029796,1e-08,110260.0,110250.0,1.14854622]
[1761318030007,1e-08,110260.0,110250.0,1.55302622]
[1761318030448,1e-08,110260.0,110250.0,1.14854622]
[1761318030692,1e-08,110260.0,110250.0,0.89048718]
[1761318031146,1e-08,110260.0,110250.0,1.31397042]
[1761318031373,1e-08,110260.0,110250.0,1.73745366]
[1761318031591,1e-08,110260.0,110250.0,1.67941366]
[1761318031817,1e-08,110260.0,110250.0,1.73745366]
[1761318035896,1e-08,110260.0,110250.0,2.1609369]
[1761318036163,0.0002,110290.0,110280.0,0.55057882]
[1761318036392,0.0002,110290.0,110280.0,1.71040431]
[1761318036393,0.00034676,110290.0,110280.0,1.71040431]
[1761318037234,0.00034676,110290.0,110280.0,1.48736431]
[1761318037437,0.00034676,110290.0,110280.0,1.28692107]
[1761318037643,0.00034676,110290.0,110280.0,1.72340431]
[1761318038059,0.00034676,110290.0,110280.0,1.30392107]
[1761318038184,0.00034676,110290.0,110280.0,1.08088107]
[1761318038383,0.00034676,110290.0,110280.0,1.30392107]
[1761318038596,0.00034676,110290.0,110280.0,0.88043783]
[1761318038858,0.00034676,110290.0,110280.0,1.72740431]
[1761318039306,0.00034676,110290.0,110280.0,0.88043783]
[1761318039506,0.00034676,110290.0,110280.0,0.50425555]
[1761318039718,0.00034676,110290.0,110280.0,0.86965879]
[1761318039923,0.00034676,110290.0,110280.0,0.92769879]
[1761318040127,0.00034676,110290.0,110280.0,0.70469879]
[1761318040333,0.00034676,110290.0,110280.0,0.92769879]
[1761318040707,0.00034676,110290.0,110280.0,1.38736431]
[1761318041181,0.00034676,110290.0,110280.0,0.96388107]
[1761318041587,0.00034676,110290.0,110280.0,1.38736431]
[1761318041763,0.00137607,110290.0,110280.0,1.38736431]
[1761318042550,0.00137607,110290.0,110280.0,1.16436431]
[1761318042777,0.00137607,110290.0,110280.0,1.38736431]
[1761318043862,0.00137607,110290.0,110280.0,0.54039783]
[1761318044093,0.00137607,110290.0,110280.0,1.38736431]
[1761318044308,0.00137607,110290.0,110280.0,1.35118203]
[1761318044514,0.00137607,110290.0,110280.0,1.38736431]
[1761318044917,0.00137607,110290.0,110280.0,1.40750008]
[1761318045108,0.00137607,110290.0,110280.0,0.90580107]
[1761318045546,0.00137607,110290.0,110280.0,0.96384107]
[1761318046804,0.00137607,110290.0,110280.0,0.96366457]
[1761318047823,0.00137607,110290.0,110280.0,0.92748229]
[1761318048121,0.00137607,110290.0,110280.0,0.96366457]
[1761318048402,0.00028798,110290.0,110280.0,0.96366457]
[1761318051739,0.19055845,110320.0,110300.0,0.18132366]
[1761318051945,0.19055845,110320.0,110310.0,0.40422722]
[1761318052200,0.0002,110320.0,110310.0,0.40422722]
[1761318052418,0.18149079,110320.0,110310.0,0.40422722]
[1761318053601,0.0002,110320.0,110310.0,0.49404623]
[1761318054018,0.18149079,110320.0,110310.0,0.49404623]
[1761318054251,0.0002,110320.0,110310.0,0.49404623]
[1761318061607,0.18149079,110320.0,110310.0,0.08981901]
[1761318061820,0.18149079,110320.0,110310.0,0.43592623]
[1761318062036,0.18251966,110320.0,110310.0,0.49396623]
[1761318062241,0.00122887,110320.0,110310.0,0.49396623]
[1761318062450,0.18251966,110320.0,110310.0,0.49396623]
[1761318062863,0.00122887,110320.0,110310.0,0.49396623]
[1761318064208,0.00122887,110320.0,110310.0,0.91727297]
[1761318064656,0.00122887,110320.0,110310.0,0.95345525]
[1761318065341,0.00122887,110320.0,110310.0,0.53014851]
[1761318065758,0.18145844,110340.0,110330.0,0.18127435]
[1761318065759,0.17325529,110340.0,110330.0,0.18127435]
[1761318065981,0.17340194,110340.0,110330.0,0.49389336]
[1761318066456,0.17340194,110340.0,110330.0,0.40407435]
[1761318067537,0.00014665,110340.0,110330.0,0.49389336]
[1761318069495,0.00014665,110340.0,110330.0,0.49489336]
[1761318071045,0.00014665,110340.0,110330.0,0.49389336]
[1761318071524,0.00083234,110340.0,110330.0,0.49389336]
[1761318071789,0.00083234,110340.0,110330.0,0.49589336]
[1761318072017,0.00083234,110340.0,110330.0,0.50789336]
[1761318072229,0.00083234,110340.0,110330.0,0.50589336]
[1761318072440,0.00083234,110340.0,110330.0,0.50989336]
[1761318072914,0.00083234,110340.0,110330.0,0.10581901]
[1761318072915,0.18209027,110340.0,110330.0,0.10581901]
[1761318073078,0.18209027,110340.0,110330.0,0.23868]
[1761318073287,0.18209027,110340.0,110330.0,0.41995435]
[1761318073914,0.18209027,110340.0,110330.0,0.23468]
[1761318074123,0.18209027,110340.0,110330.0,0.012]
[1761318074124,0.52209027,110340.0,110330.0,0.012]
[1761318074351,0.54154087,110340.0,110330.0,0.17668]
[1761318074581,0.54154087,110340.0,110330.0,0.16468]
[1761318074800,0.18129079,110320.0,110310.0,0.18130722]
[1761318075019,0.18130722,110310.0,110290.0,0.19039066]
[1761318075238,0.18130722,110310.0,110300.0,0.22268]
[1761318075505,0.18130722,110310.0,110300.0,0.40400366]
[1761318075735,0.18130722,110310.0,110300.0,0.22268]
[1761318076598,0.18135654,110280.0,110270.0,0.0020964]
[1761318076826,0.18135654,110280.0,110270.0,0.4959684]
[1761318077039,0.1813401,110290.0,110270.0,0.4959684]
[1761318077462,0.1813401,110290.0,110270.0,0.2732884]
[1761318077668,0.1813401,110290.0,110280.0,0.16468]
[1761318077883,0.1813401,110290.0,110280.0,0.34603654]
[1761318078128,0.1813401,110290.0,110280.0,0.16468]
[1761318078336,0.1813401,110290.0,110280.0,0.34603654]
[1761318078552,0.1813401,110290.0,110280.0,0.16468]
[1761318078778,0.1813401,110290.0,110280.0,0.17068]
[1761318080722,0.57572349,110290.0,110280.0,0.007]
[1761318081131,0.57572349,110290.0,110280.0,0.13376]
[1761318081556,0.5385505,110290.0,110280.0,0.12776]
[1761318081697,0.5385505,110290.0,110280.0,0.12676]
[1761318081922,0.19038984,110300.0,110280.0,0.13176]
[1761318082123,0.19035532,110320.0,110300.0,0.18132366]
[1761318082297,0.19035532,110320.0,110310.0,0.49380623]
[1761318082298,0.01943233,110320.0,110310.0,0.49380623]
[1761318082522,0.18129079,110320.0,110310.0,0.49380623]
[1761318082727,0.19069584,110330.0,110310.0,0.31249901]
[1761318082927,0.18129079,110320.0,110310.0,0.49380603]
[1761318083762,0.18129079,110320.0,110310.0,0.49380623]
[1761318084160,0.18129079,110320.0,110310.0,0.31249901]
[1761318084362,0.18129079,110320.0,110310.0,0.31349901]
[1761318084563,0.19035964,110320.0,110310.0,0.16864]
[1761318084779,0.19035964,110320.0,110310.0,0.22368]
[1761318085205,0.18129079,110320.0,110310.0,0.17064]
[1761318085413,0.18129079,110320.0,110310.0,0.16564]
[1761318085855,0.18129079,110320.0,110310.0,0.003]
[1761318086058,0.18129079,110320.0,110310.0,0.001]
[1761318086263,0.18129079,110320.0,110310.0,0.16464]
[1761318086463,0.18129079,110320.0,110310.0,0.16564]
[1761318087185,0.18129079,110320.0,110310.0,0.16464]
[1761318087531,0.19029079,110320.0,110310.0,0.16464]
[1761318087755,0.18129079,110320.0,110310.0,0.16464]
[1761318088043,0.22020629,110320.0,110310.0,0.16464]
[1761318088251,0.18132292,110310.0,110290.0,0.1904071]
[1761318088446,0.18132292,110310.0,110300.0,0.31245901]
[1761318088693,0.18132292,110310.0,110300.0,0.08981901]
[1761318088930,0.18132292,110310.0,110300.0,0.31245901]
[1761318089137,0.18132292,110310.0,110300.0,0.08981901]
[1761318089343,0.18133318,110300.0,110280.0,0.19037732]
[1761318089555,0.1813401,110290.0,110270.0,0.19253791]
[1761318089765,0.1813401,110290.0,110280.0,0.31245901]
[1761318090188,0.1813401,110290.0,110280.0,0.49381555]
[1761318090394,0.1813401,110290.0,110280.0,0.31245901]
[1761318091471,0.1823401,110290.0,110280.0,0.33445901]
[1761318091686,0.1823401,110290.0,110280.0,0.29317555]
[1761318091913,0.1823401,110290.0,110280.0,0.51581555]
[1761318092136,0.1823401,110290.0,110280.0,0.33445901]
[1761318092552,0.1823401,110290.0,110280.0,0.51581555]
[1761318092762,0.1823401,110290.0,110280.0,0.33445901]
[1761318092947,0.1823401,110290.0,110280.0,0.51581555]
[1761318093647,0.18363808,110300.0,110280.0,0.022]
[1761318093861,0.5213401,110290.0,110280.0,0.08004]
[1761318094065,0.5213401,110290.0,110280.0,0.2446]
[1761318094275,0.5213401,110290.0,110280.0,0.18656]
[1761318094508,0.54561014,110290.0,110280.0,0.022]
[1761318094730,0.54561014,110290.0,110280.0,0.16456]
[1761318094944,0.5213401,110290.0,110280.0,0.17256]
[1761318095362,0.5213401,110290.0,110280.0,0.16656]
[1761318095570,0.5223401,110290.0,110280.0,0.18456]
[1761318095756,0.5223401,110290.0,110280.0,0.16656]
[1761318096205,0.5223401,110290.0,110280.0,0.16456]
[1761318096420,0.5223401,110290.0,110280.0,0.16856]
[1761318097066,0.59293792,110290.0,110280.0,0.16456]
[1761318097276,0.60193792,110290.0,110280.0,0.16456]
[1761318097495,0.01,110290.0,110280.0,0.34591654]
[1761318097714,0.1913401,110290.0,110280.0,0.34591654]
[1761318098130,0.00940494,110290.0,110280.0,0.34591654]
[1761318098367,0.19074504,110290.0,110280.0,0.34591654]
[1761318098611,0.1813401,110290.0,110280.0,0.34591654]
[1761318098826,0.18363808,110300.0,110280.0,0.34891654]
[1761318099038,0.1813401,110290.0,110280.0,0.34591654]
[1761318099244,0.1813401,110290.0,110280.0,0.16456]
[1761318099446,0.1813401,110290.0,110280.0,0.34591654]
[1761318099670,0.1813401,110290.0,110280.0,0.34691654]
[1761318099998,0.1813401,110290.0,110280.0,0.34591654]
[1761318100411,0.1813401,110290.0,110280.0,0.35191654]
[1761318101204,0.1813401,110290.0,110280.0,0.17056]
[1761318101439,0.1813401,110290.0,110280.0,0.35191654]
[1761318101650,0.19038828,110310.0,110280.0,0.35191654]
[1761318101885,0.18132449,110300.0,110280.0,0.35191654]
[1761318102151,0.1813401,110290.0,110280.0,0.17056]
[1761318102381,0.1813401,110290.0,110280.0,0.22856]
[1761318102652,0.1813401,110290.0,110280.0,0.22756]
[1761318102894,0.1813401,110290.0,110280.0,0.006]
[1761318103118,0.1813401,110290.0,110280.0,0.22856]
[1761318103338,0.1813401,110290.0,110280.0,0.22756]
[1761318103531,0.1813401,110290.0,110280.0,0.22256]
[1761318103758,0.1813401,110290.0,110280.0,0.22356]
[1761318103953,0.1813401,110290.0,110280.0,0.22256]
[1761318104206,0.5213401,110290.0,110280.0,0.22256]
[1761318104425,0.18135654,110280.0,110270.0,0.00224316]
[1761318104642,0.18135654,110280.0,110270.0,0.06028316]
[1761318104862,0.18135654,110280.0,110270.0,0.22480316]
[1761318105747,0.18135654,110280.0,110270.0,0.22580316]
[1761318106645,0.5213401,110290.0,110270.0,0.40717615]
[1761318106853,0.1813401,110290.0,110270.0,0.41217615]
[1761318107074,0.18135654,110280.0,110270.0,0.23080316]
[1761318107526,0.18135654,110280.0,110270.0,0.22580316]
[1761318107737,0.21519936,110280.0,110270.0,0.22576316]
[1761318107943,0.21519936,110280.0,110270.0,0.00624316]
[1761318108158,0.21519936,110280.0,110270.0,0.16772316]
[1761318108343,0.18126587,110280.0,110270.0,0.17272316]
[1761318108615,0.18126587,110280.0,110270.0,0.17172316]
[1761318108845,0.18126587,110280.0,110270.0,0.17272316]
[1761318109270,0.18126587,110280.0,110270.0,0.17172316]
[1761318109471,0.18126587,110280.0,110270.0,0.00724316]
[1761318109675,0.18126587,110280.0,110270.0,0.16672316]
[1761318109907,0.18926587,110280.0,110270.0,0.16672316]
[1761318112216,0.22632647,110280.0,110270.0,0.16672316]
[1761318112656,0.18926587,110280.0,110270.0,0.16672316]
[1761318113310,0.18926587,110280.0,110270.0,0.00224316]
[1761318113809,0.18926587,110280.0,110270.0,0.16672316]
[1761318114277,0.18926587,110280.0,110270.0,0.16668316]
[1761318114485,0.18926587,110280.0,110270.0,0.00224316]
[1761318114694,0.18926587,110280.0,110270.0,0.16668316]
[1761318115973,0.18926587,110280.0,110270.0,0.00224316]
[1761318116184,0.18926587,110280.0,110270.0,0.16668316]
[1761318116602,0.22632647,110280.0,110270.0,0.00224316]
[1761318116807,0.18926587,110280.0,110270.0,0.16668316]
[1761318117022,0.18926587,110280.0,110270.0,0.00224316]
[1761318117239,0.18926587,110280.0,110270.0,0.16668316]
[1761318121193,0.18926587,110280.0,110270.0,0.00224316]
[1761318121194,0.61908488,110280.0,110270.0,0.00224316]
[1761318121405,0.76479138,110280.0,110270.0,0.00224316]
[1761318122282,0.63856661,110280.0,110270.0,0.00224316]
[1761318122501,0.7131476,110280.0,110270.0,0.00224316]
[1761318122716,0.52126587,110280.0,110270.0,0.00224316]
[1761318123187,0.52926587,110280.0,110270.0,0.00224316]
[1761318123616,0.52935654,110280.0,110270.0,0.18361615]
[1761318123868,0.18135654,110280.0,110270.0,0.24165615]
[1761318124057,0.34,110290.0,110280.0,0.18135654]
[1761318124304,0.19039067,110300.0,110280.0,0.34575654]
[1761318124518,0.0194829,110300.0,110290.0,0.18133881]
[1761318124728,0.20080656,110300.0,110290.0,0.23937881]
[1761318125176,0.54080656,110300.0,110290.0,0.23937881]
[1761318125380,0.20080656,110300.0,110290.0,0.05804]
[1761318125800,0.54080656,110300.0,110290.0,0.05804]
[1761318126014,0.54180656,110300.0,110290.0,0.05804]
[1761318126640,0.54580656,110300.0,110290.0,0.05804]
[1761318129434,0.52632366,110300.0,110290.0,0.05804]
[1761318130280,0.1813401,110290.0,110270.0,0.00224316]
[1761318130496,0.18135654,110280.0,110270.0,0.24165615]
[1761318130705,0.18135654,110280.0,110270.0,0.40597615]
[1761318130911,0.18135654,110280.0,110270.0,0.22460316]
[1761318132017,0.18135654,110280.0,110270.0,0.00224316]
[1761318132235,0.5576262,110280.0,110270.0,0.00424316]
[1761318132454,0.5596262,110280.0,110270.0,0.02824316]
[1761318132668,0.57910803,110280.0,110270.0,0.02824316]
[1761318133163,0.57710803,110280.0,110270.0,0.00424316]
[1761318133395,0.64065737,110280.0,110270.0,0.00424316]
[1761318133601,0.68083965,110280.0,110270.0,0.00424316]